[Event "44th Chess Olympiad Women 2022"]
[Site "Chennai"]
[Date "2022.07.29"]
[Round "1.55"]
[White "Liu, Yang Hazel"]
[Black "Makda Araya Fessehaye"]
[Result "1-0"]
[ECO "A43"]
[WhiteElo "2046"]
[BlackElo "1242"]
[Annotator "TA"]
[PlyCount "57"]
[EventDate "2022.07.29"]
[EventType "team-tourn"]
[EventCountry "IND"]
[SourceTitle "playchess.com"]
[Source "ChessBase"]
[SourceQuality "1"]
[WhiteTeam "SGP"]
[BlackTeam "Eritrea"]
[BlackTeamCountry "ERI"]
[TimeControl "40/5400+30:1800+30"]

{[%evp 9,57,37,61,61,53,34,57,60,75,66,70,70,107,76,75,73,119,93,121,73,96,99,110,73,77,69,99,102,111,108,112,110,351,389,545,412,457,458,458,463,458,459,646,662,674,575,575,554,652,622]} 1. d4 {[%emt 0:00:30][%cal Bd2d4,Bd4d5][%mdl 32]} c5 {[%emt 0:06:55]} 2. d5 {[%emt 0:00:35]} d6 {[%emt 0:01:03]} 3. e4 {[%emt 0:01:06]} Nf6 {[%emt 0:01:15]} 4. Nc3 {[%emt 0:03:06]} g6 {[%emt 0:04:21]} 5. h3 {[%emt 0:03:58] [#]} Qa5 $146 {[%emt 0:02:04]} ({Predecessor:} 5... Bg7 6. Nf3 O-O 7. Bd3 Na6 8. O-O Nc7 9. a4 b6 10. Qe2 a6 11. Bf4 Bb7 12. Rfe1 Qd7 13. Nd2 Rab8 14. Nc4 Ba8 15. a5 b5 {0-1 (53) Donchenko,A (2636)-Brodowski,P (2443) Katowice 2021}) 6. Bd2 {[%emt 0:03:57] A43: Schmid Benoni.} Bg7 {[%emt 0:02:41]} 7. Bd3 {[%emt 0:04:12]} a6 {[%emt 0:04:14]} 8. a4 {[%emt 0:01:05][%cal Ba2a4,Ba4a5][%mdl 32] White is slightly better.} Qb6 {[%emt 0:03:36]} 9. a5 {[%emt 0:03:31]} Qc7 {[%emt 0:00:59]} 10. Nf3 {[%emt 0:03:22]} Bd7 {[%emt 0:03:37]} 11. Qe2 {[%emt 0:05:11]} O-O {[%emt 0:04:11]} 12. O-O {[%emt 0:00:59]} Bc8 {[%emt 0:08:39]} (12... e6 $142) 13. Bf4 {[%emt 0:03:34]} Nbd7 {[%emt 0:04:47]} 14. Nd2 {[%emt 0:11:49] 0x0.001b83fa9117dp-1022s more active pieces. The black rooks are badly placed.} (14. Qe3 $142) 14... Nh5 {[%emt 0:02:31]} 15. Bh2 {[%emt 0:00:52]} Ne5 {[%emt 0:02:55]} 16. f4 {[%emt 0:04:40][%cal Bf2f4,Bf4e5,Be5e6,Be6d7][%mdl 32]} Nxd3 {[%emt 0:01:06]} 17. Qxd3 {[%emt 0:00:07]} b6 {[%emt 0:04:59]} 18. axb6 {[%emt 0:00:57]} Qxb6 {[%emt 0:01:20] [#] White must now prevent ...c4+.} 19. Nc4 {[%emt 0:00:22]} Qc7 {[%emt 0:03:40]} 20. e5 {[%emt 0:01:21] And now g4 would win.} dxe5 $2 {[%emt 0:06:27] A mistake that costs the game.} (20... f5 $16 {was called for.}) 21. fxe5 $18 {[%emt 0:00:19]} Bf5 {[%emt 0:02:34]} (21... g5 {keeps fighting.} 22. Ne4 h6 23. Nf6+ exf6) 22. Qd1 {[%emt 0:02:03]} Bd7 {[%emt 0:10:01]} 23. e6 {[%emt 0:11:10] White is clearly winning.} Ng3 {[%emt 0:03:53]} 24. Bxg3 {[%emt 0:01:09]} ({But not} 24. exd7 Bd4+ 25. Rf2 Bxf2+ 26. Kxf2 Qf4+ 27. Kg1 Ra7 $18) 24... Qxg3 {[%emt 0:00:26]} 25. exd7 {[%emt 0:00:12]} Bd4+ {[%emt 0:06:06]} (25... Rad8 $142 26. d6 Bd4+ 27. Kh1 Rxd7) 26. Kh1 {[%emt 0:00:09]} Qc7 {[%emt 0:01:59]} 27. Qf3 {[%emt 0:04:41]} Rad8 {[%emt 0:05:36]} 28. Rxa6 {[%emt 0:06:40]} Rxd7 {[%emt 0:00:50]} 29. Nb5 {[%emt 0:03:42] Weighted Error Value: White=0.20 (precise) /Black=0.44} 1-0

[Event "44th Chess Olympiad Women 2022"]
[Site "Chennai"]
[Date "2022.07.29"]
[Round "1.56"]
[White "Mills, Morgen"]
[Black "Esse, Akua Kosife"]
[Result "1-0"]
[WhiteElo "1993"]
[BlackElo "1329"]
[Annotator "TA"]
[PlyCount "33"]
[EventDate "2022.07.29"]
[EventType "team-tourn"]
[EventCountry "IND"]
[SourceTitle "playchess.com"]
[Source "ChessBase"]
[SourceQuality "1"]
[WhiteTeam "Canada"]
[BlackTeam "Togo"]
[WhiteTeamCountry "CAN"]
[BlackTeamCountry "TOG"]
[TimeControl "40/5400+30:1800+30"]

{[%evp 10,12,19,24,111]} 1. e4 {[%emt 0:00:10]} e5 {[%emt 0:00:05]} 2. Nf3 {[%emt 0:00:10]} Nc6 {[%emt 0:00:35]} 3. Bb5 {[%emt 0:00:07]} a6 {[%emt 0:00:46]} 4. Bxc6 {[%emt 0:01:40]} dxc6 {[%emt 0:00:51]} 5. O-O {[%emt 0:00:09]} Bd6 {[%emt 0:03:44]} 6. d4 {[%emt 0:04:27]} f6 {[%emt 0:02:17] [#] C68: Ruy Lopez: Exchange Variation, sidelines.} (6... exd4 $11 {remains equal.} 7. Qxd4 f6) {Predecessor:} 7. dxe5 $146 fxe5 8. Nxe5 Ne7 9. Qh5+ g6 10. Qg5 O-O 11. Nd3 b6 12. Nc3 a5 13. Rd1 Qe8 14. a3 Ba6 15. e5 Rf5 16. Qe3 Rxe5 17. Nxe5 {1-0 (32) Valmana Canto,J (2388)-Granero Roca,A (2358) Alcossebre 2022} 1-0

[Event "44th Chess Olympiad Women 2022"]
[Site "Chennai"]
[Date "2022.07.29"]
[Round "1.56"]
[White "De Souza, Ivana Claudia Eyram"]
[Black "Demchenko, Svitlana"]
[Result "0-1"]
[ECO "E61"]
[WhiteElo "1167"]
[BlackElo "2122"]
[Annotator "TA"]
[PlyCount "60"]
[EventDate "2022.07.29"]
[EventType "team-tourn"]
[EventCountry "IND"]
[SourceTitle "playchess.com"]
[Source "ChessBase"]
[SourceQuality "1"]
[WhiteTeam "Togo"]
[BlackTeam "Canada"]
[WhiteTeamCountry "TOG"]
[BlackTeamCountry "CAN"]
[TimeControl "40/5400+30:1800+30"]

{[%evp 16,60,20,8,28,26,25,11,27,-21,18,-4,0,-38,-40,-50,-25,-100,-92,-110,-83,-118,-117,-422,-421,-413,-391,-450,-445,-722,-715,-778,-775,-778,-747,-872,-850,-876,-860,-894,-900,-1005,-991,-995,-977,-902,-753]} 1. d4 {[%emt 0:00:04]} g6 {[%emt 0:00:36]} 2. c4 {[%emt 0:01:19]} Bg7 {[%emt 0:00:07]} 3. e3 {[%emt 0:02:40]} d6 {[%emt 0:00:24]} 4. Nf3 {[%emt 0:01:23]} Nf6 {[%emt 0:00:23]} 5. Nc3 {[%emt 0:01:59]} O-O {[%emt 0:00:18]} 6. Be2 {[%emt 0:00:36]} Nbd7 {[%emt 0:00:27]} 7. O-O {[%emt 0:04:38]} e5 {[%emt 0:00:09]} 8. Qc2 {[%emt 0:05:11]} c6 {[%emt 0:00:33]} 9. b3 {[%emt 0:08:48]} Qc7 {[%emt 0:03:06] E61: King's Indian: Early deviations for White, including Smyslov System.} 10. Bb2 {[%emt 0:04:05]} Re8 {[%emt 0:04:05]} 11. Bd3 {[%emt 0:05:23]} Nh5 {[%emt 0:04:53] [#] The position is equal.} 12. Nd2 $146 {[%emt 0:06:11]} (12. Rfd1 {was preferrable.}) ({Predecessor:} 12. d5 f5 13. e4 Nc5 14. Rfe1 Nf4 15. Bf1 Bh6 16. g3 fxe4 17. gxf4 exf3 18. fxe5 dxe5 {½-½ (61) Zacarias,R (2065)-Vilalba,G (1906) Tijuca 2012}) 12... f5 {[%emt 0:01:58]} (12... exd4 {seems wilder.} 13. exd4 Nf4 14. Rfe1 Rd8) 13. dxe5 {[%emt 0:12:56]} dxe5 {[%emt 0:00:53][%cal Bd6e5,Be5f4,Bf4e3][%mdl 32]} 14. f3 {[%emt 0:02:03]} Nc5 {[%emt 0:01:36][%cal Oe5e4]} 15. Be2 {[%emt 0:04:34]} a5 {[%emt 0:10:24]} 16. a4 {[%emt 0:06:56]} (16. Ba3 $11 Bf8 17. Na4 Nxa4 18. Bxf8) 16... Qb6 {[%emt 0:02:29]} (16... Nf6 {feels hotter.} 17. Nd1 e4 18. Bd4 exf3 19. Bxf3 Ng4) 17. Kh1 {[%emt 0:12:38]} Qd8 {[%emt 0:05:38] Black is more active.} 18. f4 {[%emt 0:04:49]} exf4 {[%emt 0:03:02]} 19. Bxh5 $2 {[%emt 0:05:57][%mdl 8192]} (19. exf4 $17 Nf6 20. Rae1) 19... fxe3 $19 {[%emt 0:01:01]} (19... gxh5 20. exf4 Qd3 21. Rac1 $17) 20. Nf3 {[%emt 0:02:11]} Qd3 {[%emt 0:04:46][%mdl 64] [#] Deflection} ({Avoid the trap} 20... gxh5 $2 21. Ne2 $19) 21. Qc1 {[%emt 0:03:17]} ({Stronger than} 21. Qxd3 Nxd3 22. Nd5 Bxb2 $19) 21... Nxb3 {[%emt 0:01:20] Black is clearly winning.} ({Not} 21... gxh5 22. Rd1 f4 23. Rxd3 Nxd3 24. Qc2 $11) 22. Qd1 {[%emt 0:01:41]} (22. Qb1 $142 Qxc4 23. Ra3) 22... Qxd1 {[%emt 0:02:02]} 23. Rfxd1 {[%emt 0:00:39]} Nxa1 {[%emt 0:00:29]} 24. Bxa1 {[%emt 0:01:08]} gxh5 {[%emt 0:00:32]} 25. Re1 {[%emt 0:00:27]} f4 {[%emt 0:01:16][%cal Oe3e2]} 26. Ne2 {[%emt 0:00:18]} Re4 {[%emt 0:01:11]} 27. Bxg7 {[%emt 0:01:08]} Kxg7 {[%emt 0:00:04]} 28. g3 {[%emt 0:00:32]} Bg4 {[%emt 0:01:16]} 29. Kg2 {[%emt 0:00:28]} fxg3 {[%emt 0:00:40]} 30. Nxg3 {[%emt 0:00:58] [#]} Rf8 $1 {[%emt 0:00:59] White got outplayed after the opening.  Weighted Error Value: White=0.73/Black=0.10 (very precise)} 0-1

[Event "44th Chess Olympiad Women 2022"]
[Site "Chennai"]
[Date "2022.07.29"]
[Round "1.57"]
[White "Pinder, Trinity"]
[Black "Morales Flores, Monserrat"]
[Result "0-1"]
[WhiteElo "1183"]
[BlackElo "1946"]
[Annotator "TA"]
[PlyCount "31"]
[EventDate "2022.07.29"]
[EventType "team-tourn"]
[EventCountry "IND"]
[SourceTitle "playchess.com"]
[Source "ChessBase"]
[SourceQuality "1"]
[WhiteTeam "Bahamas"]
[BlackTeam "Chile"]
[WhiteTeamCountry "BAH"]
[BlackTeamCountry "CHI"]
[TimeControl "40/5400+30:1800+30"]

{[%evp 13,14,12,20]} 1. d4 {[%emt 0:00:04]} Nf6 {[%emt 0:00:12]} 2. c4 {[%emt 0:00:11]} g6 {[%emt 0:00:18]} 3. Nc3 {[%emt 0:00:15]} Bg7 {[%emt 0:00:15]} 4. Nf3 {[%emt 0:00:28]} O-O {[%emt 0:00:27]} 5. e3 {[%emt 0:00:25]} d6 {[%emt 0:03:34]} 6. Bd3 {[%emt 0:01:19]} Nbd7 {[%emt 0:00:53]} 7. O-O {[%emt 0:00:42]} e5 {[%emt 0:05:26][%mdl 32768] [#] Loss on time!?} {Predecessor:} 8. Qc2 $146 {E61: King's Indian: Early deviations for White, including Smyslov System.} Re8 9. dxe5 dxe5 10. Rd1 Qe7 11. e4 c6 12. h3 Nc5 13. Be3 Nh5 14. Bf1 a5 15. g3 Nf6 16. Rd2 {½-½ (68) Timofeev,A (2594)-Hansen,S (2528) Chess.com INT 2021} 0-1

[Event "44th Chess Olympiad Women 2022"]
[Site "Chennai"]
[Date "2022.07.29"]
[Round "1.58"]
[White "Varela La Madrid, Tilsia Carolina"]
[Black "Magne Kouokam Sylviane"]
[Result "1-0"]
[WhiteElo "2079"]
[BlackElo "1317"]
[Annotator "TA"]
[PlyCount "13"]
[EventDate "2022.07.29"]
[EventType "team-tourn"]
[EventCountry "IND"]
[SourceTitle "playchess.com"]
[Source "ChessBase"]
[SourceQuality "1"]
[WhiteTeam "Venezuela"]
[BlackTeam "CMR"]
[WhiteTeamCountry "VEN"]
[TimeControl "40/5400+30:1800+30"]

{[%evp 9,13,58,89,86,97,79]} 1. e4 {[%emt 0:00:11]} d5 {[%emt 0:00:15]} 2. exd5 {[%emt 0:00:06]} Nf6 {[%emt 0:00:28]} 3. Bb5+ {[%emt 0:01:49]} Bd7 {[%emt 0:00:39]} 4. Bc4 {[%emt 0:00:18]} Bf5 {[%emt 0:02:15]} 5. Nc3 {[%emt 0:00:35]} g6 {[%emt 0:01:44]} 6. Nge2 {[%emt 0:04:33] B01: Scandinavian Defence.} Bg7 {[%emt 0:02:11] [#]} 7. d4 $146 {[%emt 0:01:54]} ({Predecessor:} 7. Ng3 Qd7 8. Bb5 c6 9. dxc6 bxc6 10. Nxf5 gxf5 11. Be2 e5 12. d3 O-O 13. Bg5 {½-½ (48) Ackermann,H (2358)-Fecke,A (2200) Germany 2005}) 1-0

[Event "44th Chess Olympiad Women 2022"]
[Site "Chennai"]
[Date "2022.07.29"]
[Round "1.58"]
[White "Tchouateu Tankeu Stephanie"]
[Black "Otazo Sanchez, Annyd Gabriela"]
[Result "0-1"]
[ECO "E61"]
[WhiteElo "1280"]
[BlackElo "1932"]
[Annotator "TA"]
[PlyCount "72"]
[EventDate "2022.07.29"]
[EventType "team-tourn"]
[EventCountry "IND"]
[SourceTitle "playchess.com"]
[Source "ChessBase"]
[SourceQuality "1"]
[WhiteTeam "CMR"]
[BlackTeam "Venezuela"]
[BlackTeamCountry "VEN"]
[TimeControl "40/5400+30:1800+30"]

{[%evp 11,72,11,4,-45,-34,-46,-13,-123,-125,-134,-127,-447,-442,-419,-426,-453,-443,-483,-481,-491,-488,-535,-545,-568,-559,-562,-550,-562,-557,-889,-876,-882,-868,-1064,-1073,-1036,-970,-1429,-1395,-1343,-1309,-2593,-2238,-29981,-29982,-29982,-29983,-29979,-29976,-29984,-29984,-29992,-29993,-29994,-29995,-29995,-29996,-29996,-29997,-29997,-29998,-29998,-29999]} 1. d4 {[%emt 0:00:07]} Nf6 {[%emt 0:00:22]} 2. c4 {[%emt 0:00:16]} g6 {[%emt 0:00:08]} 3. Nc3 {[%emt 0:00:20]} Bg7 {[%emt 0:00:05]} 4. Nf3 {[%emt 0:00:30]} O-O {[%emt 0:00:33]} 5. Bf4 {[%emt 0:00:51]} d6 {[%emt 0:01:24]} 6. e3 {[%emt 0:01:44]} Nh5 {[%emt 0:07:46]} 7. Bd3 {[%emt 0:06:56] E61: King's Indian: Early deviations for White, including Smyslov System.} (7. Bg5 $11 {should be considered.}) 7... Nxf4 $15 {[%emt 0:00:47]} 8. exf4 {[%emt 0:00:19]} c5 {[%emt 0:00:14] [#]} 9. Ne2 $146 {[%emt 0:02:17]} (9. d5 $11) ({Predecessor:} 9. d5 Qa5 10. Qc2 Na6 11. a3 Nb4 12. Qe2 Nxd3+ 13. Qxd3 Bf5 14. Qd2 a6 15. O-O {0-1 (28) Van Riemsdijk,M (1774)-Baccarin,N (1926) Rio Claro 2015}) 9... cxd4 {[%emt 0:06:28]} 10. Nexd4 {[%emt 0:18:19]} Qb6 {[%emt 0:00:45][%csl LRb2,LRd4]} 11. Qe2 $2 {[%emt 0:03:29][%mdl 8192] [#]} Bxd4 $19 {[%emt 0:01:10]} 12. Nxd4 {[%emt 0:01:07]} Qxd4 {[%emt 0:00:10]} 13. O-O {[%emt 0:00:23]} Nc6 {[%emt 0:00:12]} 14. Rad1 {[%emt 0:08:12]} Qxf4 {[%emt 0:00:42]} 15. g3 {[%emt 0:03:00]} Qf6 {[%emt 0:00:14]} 16. Be4 {[%emt 0:01:25]} Bh3 {[%emt 0:01:33]} 17. Bg2 {[%emt 0:00:12]} Bxg2 {[%emt 0:00:13]} 18. Kxg2 {[%emt 0:00:30]} Nd4 {[%emt 0:02:17]} 19. Qe4 {[%emt 0:09:12]} e5 {[%emt 0:01:30]} 20. Qxb7 {[%emt 0:03:32]} Rab8 {[%emt 0:05:28][%cal Ba8b8,Bb8b2,Bb2e2][%mdl 32]} 21. Qe4 {[%emt 0:03:49]} Rxb2 {[%emt 0:00:11]} 22. a4 {[%emt 0:03:09]} Rfb8 {[%emt 0:01:35]} 23. Rd3 {[%emt 0:03:43]} Re2 {[%emt 0:01:48]} 24. Re3 {[%emt 0:16:11]} Rbb2 {[%emt 0:00:50][%cal Re2f2]} 25. Rxe2 {[%emt 0:00:35]} Rxe2 {[%emt 0:00:07]} 26. Qxe2 {[%emt 0:07:28]} Nxe2 {[%emt 0:00:13]} 27. Re1 {[%emt 0:01:52]} Nd4 {[%emt 0:00:09] Black mates.} 28. Re3 {[%emt 0:00:33]} Qe6 {[%emt 0:00:09]} 29. Rc3 {[%emt 0:01:20]} h5 {[%emt 0:01:02]} 30. h4 {[%emt 0:01:06]} Qd7 {[%emt 0:00:13]} 31. a5 {[%emt 0:00:23]} Qb7+ {[%emt 0:00:06]} 32. Kg1 {[%emt 0:01:59]} Ne2+ {[%emt 0:00:10]} 33. Kf1 {[%emt 0:00:14]} Nxc3 {[%emt 0:00:06][%cal Rb7h1]} 34. Ke1 {[%emt 0:00:09]} Qb2 {[%emt 0:00:09][%csl Gc3][%cal Rb2e2]} 35. Kf1 {[%emt 0:00:26]} Ne4 {[%emt 0:00:17][%csl Ge4][%cal Rb2f2]} 36. Ke1 {[%emt 0:00:21]} Qd2+ {[%emt 0:00:07] Black took control after the opening.  Weighted Error Value: White=1.08/Black=0.03 (flawless)} 0-1

[Event "44th Chess Olympiad Women 2022"]
[Site "Chennai"]
[Date "2022.07.29"]
[Round "1.59"]
[White "Silva, Mariana Sofia T."]
[Black "Nuha, Rilwan"]
[Result "1-0"]
[ECO "E06"]
[WhiteElo "1912"]
[BlackElo "1068"]
[Annotator "TA"]
[PlyCount "49"]
[EventDate "2022.07.29"]
[EventType "team-tourn"]
[EventCountry "IND"]
[SourceTitle "playchess.com"]
[Source "ChessBase"]
[SourceQuality "1"]
[WhiteTeam "Portugal"]
[BlackTeam "Maldives"]
[WhiteTeamCountry "POR"]
[BlackTeamCountry "MDV"]
[TimeControl "40/5400+30:1800+30"]

{[%evp 21,49,45,91,84,90,89,94,79,108,89,197,200,243,90,368,309,794,794,742,756,969,948,940,945,933,919,5415,3205,5386,5093]} 1. d4 {[%emt 0:00:03]} Nf6 {[%emt 0:00:11]} 2. c4 {[%emt 0:00:07]} e6 {[%emt 0:00:08]} 3. g3 {[%emt 0:00:06]} d5 {[%emt 0:02:12]} 4. Bg2 {[%emt 0:00:06]} c5 {[%emt 0:02:45]} 5. cxd5 {[%emt 0:00:45]} Nxd5 {[%emt 0:00:20]} 6. Nf3 {[%emt 0:02:24]} Nc6 {[%emt 0:01:21]} 7. O-O {[%emt 0:03:38]} Be7 {[%emt 0:03:05]} 8. dxc5 {[%emt 0:01:59]} Bxc5 {[%emt 0:00:33]} 9. Qc2 {[%emt 0:00:16]} Be7 {[%emt 0:04:42]} 10. a3 {[%emt 0:03:02]} O-O {[%emt 0:01:58]} 11. Rd1 {[%emt 0:01:17]} Qb6 {[%emt 0:01:07]} (11... Bd7 $14) 12. e4 $16 {[%emt 0:00:52][%cal Be2e4,Be4e5][%mdl 32] E06: Closed Catalan: Early deviations.} Nf6 {[%emt 0:02:23]} 13. Be3 {[%emt 0:01:52]} Qc7 {[%emt 0:01:57]} 14. Nc3 {[%emt 0:03:53] [#] White is better.} a6 $146 {[%emt 0:03:50]} ({Predecessor:} 14... Bd7 15. Nb5 Qc8 16. Bf4 e5 17. Bg5 Be6 18. Rac1 a6 19. Nd6 Bxd6 20. Rxd6 Nd4 21. Nxd4 exd4 {1-0 (74) Siddharth,J (2320)-Kahlert,T (2155) Chess.com INT 2020}) 15. h3 {[%emt 0:04:05] White is more active.} b5 {[%emt 0:03:30]} (15... Rd8 $16) 16. e5 {[%emt 0:05:47]} Ne8 {[%emt 0:05:18] [#]} 17. Ne4 $2 {[%emt 0:09:00]} (17. Rac1 $1 $18 {has better winning chances.}) 17... Rb8 $2 {[%emt 0:04:25][%mdl 8192]} (17... Nxe5 $16 {is a better defense.} 18. Qxc7 Nxf3+ 19. Bxf3 Nxc7) 18. Neg5 {[%emt 0:06:54]} Bxg5 $2 {[%emt 0:02:49]} (18... g6 19. Rac1 Bb7) 19. Nxg5 $18 {[%emt 0:00:10][%csl Gg5][%cal Rc2h7] White is clearly winning.} ({Weaker is} 19. Bxg5 Bb7 $18) 19... g6 {[%emt 0:02:35]} 20. Qxc6 {[%emt 0:00:28]} Qxc6 {[%emt 0:00:36]} 21. Bxc6 {[%emt 0:00:07]} Bb7 {[%emt 0:03:06]} 22. Bxb7 {[%emt 0:00:19]} Rxb7 {[%emt 0:00:11]} 23. Bc5 {[%emt 0:00:20]} Nc7 {[%emt 0:06:46]} 24. Bxf8 {[%emt 0:00:26] [#] Intending Rd8 and mate.} Kxf8 {[%emt 0:00:19]} 25. Rd7 {[%emt 0:00:10] White took control after the opening.  Weighted Error Value: White=0.32/Black=0.91} 1-0

[Event "44th Chess Olympiad Women 2022"]
[Site "Chennai"]
[Date "2022.07.29"]
[Round "1.59"]
[White "Nihaya, Ahmed"]
[Black "Chaves, Jussara"]
[Result "1/2-1/2"]
[ECO "B01"]
[WhiteElo "1233"]
[BlackElo "1933"]
[Annotator "TA"]
[PlyCount "64"]
[EventDate "2022.07.29"]
[EventType "team-tourn"]
[EventCountry "IND"]
[SourceTitle "playchess.com"]
[Source "ChessBase"]
[SourceQuality "1"]
[WhiteTeam "Maldives"]
[BlackTeam "Portugal"]
[WhiteTeamCountry "MDV"]
[BlackTeamCountry "POR"]
[TimeControl "40/5400+30:1800+30"]

{[%evp 9,64,32,36,33,67,47,82,65,56,43,45,56,159,35,54,49,48,52,50,41,47,29,35,0,47,30,37,37,59,56,82,34,54,56,58,58,65,28,29,-37,39,39,41,41,41,37,37,18,223,98,98,55,54,0,0,0,0]} 1. e4 {[%emt 0:00:04]} d5 {[%emt 0:00:07]} 2. exd5 {[%emt 0:00:13]} Qxd5 {[%emt 0:00:07]} 3. Nc3 {[%emt 0:00:24]} Qa5 {[%emt 0:00:07]} 4. Nf3 {[%emt 0:01:19]} Nf6 {[%emt 0:01:36]} 5. d4 {[%emt 0:01:29]} c6 {[%emt 0:01:17]} 6. Bd3 {[%emt 0:02:22] B01: Scandinavian Defence.} g6 {[%emt 0:03:34]} 7. O-O {[%emt 0:01:24]} Bg7 {[%emt 0:00:28]} 8. Re1 {[%emt 0:00:32] White is better.} Bg4 {[%emt 0:04:52]} 9. h3 {[%emt 0:00:18]} Bxf3 {[%emt 0:02:21]} 10. Qxf3 {[%emt 0:00:33] [#]} Nd5 $146 {[%emt 0:00:55]} ({Black should try} 10... e6 $14) ({Predecessor:} 10... e6 11. Bd2 O-O 12. Ne4 Qf5 13. Nxf6+ Qxf6 14. Qxf6 Bxf6 15. c3 Nd7 16. Bf4 Rfe8 {½-½ (57) Bozic,M (2085)-Sygulski,P (2133) Pula 2016}) 11. Qe2 {[%emt 0:02:03] White is more active.} (11. Bg5 $16 O-O 12. Nxd5 Qxd5 13. Qxd5 (13. Bxe7 Qxf3 14. gxf3 Re8 $16) 13... cxd5 14. Bxe7) 11... e6 {[%emt 0:06:44]} 12. Nxd5 {[%emt 0:00:17]} cxd5 {[%emt 0:00:39]} 13. c3 {[%emt 0:00:33]} O-O {[%emt 0:04:17]} 14. Bf4 {[%emt 0:01:37]} Nc6 {[%emt 0:03:51]} 15. Qd2 {[%emt 0:03:16]} Rfe8 {[%emt 0:07:39]} 16. Bh6 {[%emt 0:00:37]} e5 {[%emt 0:07:44]} (16... Bxh6 $11 17. Qxh6 e5) 17. Bxg7 $1 $14 {[%emt 0:04:37]} Kxg7 {[%emt 0:00:09]} 18. dxe5 {[%emt 0:07:01]} d4 {[%emt 0:08:16]} 19. f4 {[%emt 0:07:03]} Rad8 {[%emt 0:05:02]} 20. Qc2 {[%emt 0:01:26]} (20. Be4 $16) 20... dxc3 {[%emt 0:04:22]} 21. bxc3 {[%emt 0:00:08]} Qc5+ {[%emt 0:02:52]} 22. Kh1 {[%emt 0:01:26]} Rd7 {[%emt 0:02:29]} 23. Rad1 {[%emt 0:03:56]} Red8 {[%emt 0:05:59]} 24. Rd2 {[%emt 0:05:42]} (24. Rf1 $11) 24... Rxd3 {[%emt 0:06:14]} 25. Rxd3 {[%emt 0:00:19]} Nb4 $1 {[%emt 0:00:07] [#]} 26. cxb4 {[%emt 0:02:22]} Qxc2 {[%emt 0:00:09]} 27. Rxd8 {[%emt 0:00:05]} Qxa2 {[%emt 0:02:57] KQ-KRR} 28. Rd7 {[%emt 0:02:07] aiming for e6.} (28. e6 $5 fxe6 29. Rd7+ Kf6 30. Rxb7 $16) 28... Kh6 $2 {[%emt 0:06:23] [#]} (28... Qf2 $11 {and Black stays safe.} 29. Rg1 Qb6) 29. Rxb7 {[%emt 0:01:08]} (29. Rc1 $1 $18 {[%cal Rc1c7] is the precise move to win.}) 29... Qf2 $16 {[%emt 0:02:49][%csl LRe1,LRf4]} 30. Ra1 {[%emt 0:01:10]} Qxf4 {[%emt 0:00:28]} 31. Raxa7 {[%emt 0:00:18]} ({Better is} 31. Rbxa7 $14 Qxe5 32. b5) 31... Qf1+ {[%emt 0:01:22]} 32. Kh2 {[%emt 0:00:11]} Qf4+ {[%emt 0:00:08] Weighted Error Value: White=0.35/Black=0.32} 1/2-1/2